[Event "Live Chess"]
[Site "Chess.com"]
[Date "2023.09.16"]
[Round "-"]
[White "Samueeeseeel"]
[Black "GabrielGGCF"]
[Result "1/2-1/2"]
[WhiteElo "875"]
[BlackElo "1448"]
[TimeControl "900+5"]
[EndTime "6:35:22 PDT"]
[Termination "Empate por afogamento"]

1. c4 {[%clk 0:15:02.5]} 1... e5 {[%clk 0:15:00.6]} 2. Nc3 {[%clk 0:15:05.1]}
2... Bc5 {[%clk 0:15:03.2]} 3. g3 {[%clk 0:15:07.1]} 3... Nf6 {[%clk 0:15:07]}
4. Bg2 {[%clk 0:15:10.8]} 4... d6 {[%clk 0:15:11]} 5. e3 {[%clk 0:15:15]} 5...
Be6 {[%clk 0:15:14.7]} 6. d3 {[%clk 0:15:16.4]} 6... c6 {[%clk 0:15:17]} 7. Nge2
{[%clk 0:15:19.3]} 7... d5 {[%clk 0:15:20.7]} 8. cxd5 {[%clk 0:15:11.9]} 8...
cxd5 {[%clk 0:15:22.2]} 9. d4 {[%clk 0:15:09.3]} 9... exd4 {[%clk 0:15:16.1]}
10. exd4 {[%clk 0:15:11.7]} 10... Bb4 {[%clk 0:15:12.2]} 11. O-O {[%clk
0:15:13.4]} 11... Nc6 {[%clk 0:15:10.3]} 12. a3 {[%clk 0:15:17.1]} 12... Ba5
{[%clk 0:15:12.5]} 13. Rb1 {[%clk 0:15:02.8]} 13... O-O {[%clk 0:14:55.1]} 14.
b4 {[%clk 0:15:00.4]} 14... Bb6 {[%clk 0:14:58.5]} 15. a4 {[%clk 0:14:54.6]}
15... a5 {[%clk 0:14:53.8]} 16. b5 {[%clk 0:14:56.1]} 16... Nb4 {[%clk
0:14:52.2]} 17. Ba3 {[%clk 0:14:55.5]} 17... Qe7 {[%clk 0:14:28.2]} 18. Qb3
{[%clk 0:14:45.6]} 18... Rfc8 {[%clk 0:13:52.7]} 19. Bxb4 {[%clk 0:14:42.8]}
19... axb4 {[%clk 0:13:52.4]} 20. Qxb4 {[%clk 0:14:46.7]} 20... Qxb4 {[%clk
0:13:53.5]} 21. Rxb4 {[%clk 0:14:50.4]} 21... h6 {[%clk 0:13:43]} 22. Ra1 {[%clk
0:14:28.5]} 22... Ba5 {[%clk 0:13:46]} 23. Rb3 {[%clk 0:14:29.7]} 23... Ne4
{[%clk 0:13:23.3]} 24. Nxe4 {[%clk 0:14:26]} 24... dxe4 {[%clk 0:13:21.6]} 25.
Bxe4 {[%clk 0:14:29.6]} 25... Bxb3 {[%clk 0:13:23.5]} 26. Bxb7 {[%clk
0:14:31.6]} 26... Rab8 {[%clk 0:13:12.5]} 27. Bxc8 {[%clk 0:14:35]} 27... Rxc8
{[%clk 0:13:17]} 28. Rb1 {[%clk 0:14:32.5]} 28... Bxa4 {[%clk 0:13:19.4]} 29. b6
{[%clk 0:14:34.2]} 29... Rb8 {[%clk 0:13:21]} 30. b7 {[%clk 0:14:37]} 30... Bc6
{[%clk 0:13:24.7]} 31. Ra1 {[%clk 0:14:28]} 31... Bb6 {[%clk 0:13:23.2]} 32. Ra8
{[%clk 0:13:43]} 32... Bc7 {[%clk 0:13:16.4]} 33. Nf4 {[%clk 0:13:06.2]} 33...
Bxb7 {[%clk 0:13:14.9]} 34. Rxb8+ {[%clk 0:13:07]} 34... Bxb8 {[%clk 0:13:18.5]}
35. d5 {[%clk 0:13:10.9]} 35... Kf8 {[%clk 0:13:21.9]} 36. Kf1 {[%clk
0:13:14.2]} 36... Ke7 {[%clk 0:13:25.4]} 37. Ke2 {[%clk 0:13:18.5]} 37... Kd6
{[%clk 0:13:28.9]} 38. Kd3 {[%clk 0:13:17]} 38... Bxd5 {[%clk 0:13:31.7]} 39.
Nxd5 {[%clk 0:13:19.8]} 39... Kxd5 {[%clk 0:13:35.3]} 40. f4 {[%clk 0:13:23.2]}
40... Ba7 {[%clk 0:13:35.5]} 41. h4 {[%clk 0:13:21.7]} 41... Bf2 {[%clk
0:13:38.3]} 42. g4 {[%clk 0:13:20.6]} 42... Bxh4 {[%clk 0:13:41.5]} 43. Ke3
{[%clk 0:13:24.3]} 43... g5 {[%clk 0:13:42.7]} 44. fxg5 {[%clk 0:13:27.5]} 44...
Bxg5+ {[%clk 0:13:44.8]} 45. Kf3 {[%clk 0:13:31.5]} 45... Ke5 {[%clk 0:13:48.8]}
46. Kg3 {[%clk 0:13:33.5]} 46... f5 {[%clk 0:13:49.7]} 47. Kh3 {[%clk
0:13:32.7]} 47... fxg4+ {[%clk 0:13:52.9]} 48. Kxg4 {[%clk 0:13:36.4]} 48... Kf6
{[%clk 0:13:54.9]} 49. Kh5 {[%clk 0:13:40.2]} 49... Kg7 {[%clk 0:13:57.2]} 50.
Kg4 {[%clk 0:13:43.5]} 50... Be7 {[%clk 0:13:59.7]} 51. Kh5 {[%clk 0:13:47.3]}
51... Kh7 {[%clk 0:14:02.9]} 52. Kg4 {[%clk 0:13:50.8]} 52... Kg6 {[%clk
0:14:06.5]} 53. Kg3 {[%clk 0:13:50.3]} 53... Kg5 {[%clk 0:14:10.1]} 54. Kh3
{[%clk 0:13:53.9]} 54... h5 {[%clk 0:14:11.9]} 55. Kg3 {[%clk 0:13:57.6]} 55...
Bd6+ {[%clk 0:14:15.7]} 56. Kh3 {[%clk 0:14:01.4]} 56... h4 {[%clk 0:14:18.1]}
57. Kg2 {[%clk 0:14:05.3]} 57... Kg4 {[%clk 0:14:18.4]} 58. Kg1 {[%clk
0:14:07.9]} 58... Kf3 {[%clk 0:13:53]} 59. Kf1 {[%clk 0:14:07.7]} 59... h3
{[%clk 0:13:52]} 60. Kg1 {[%clk 0:14:11.7]} 60... Be5 {[%clk 0:13:49.5]} 61. Kh1
{[%clk 0:14:13.6]} 61... Bg3 {[%clk 0:13:47.1]} 62. Kg1 {[%clk 0:14:17.1]} 62...
Kg4 {[%clk 0:13:48.3]} 63. Kh1 {[%clk 0:14:20.9]} 63... Bf4 {[%clk 0:13:50.9]}
64. Kg1 {[%clk 0:14:19.9]} 64... Kf3 {[%clk 0:13:17.3]} 65. Kh1 {[%clk
0:14:21.8]} 65... Bg5 {[%clk 0:13:15.1]} 66. Kg1 {[%clk 0:14:24.2]} 66... Bh4
{[%clk 0:13:15]} 67. Kh1 {[%clk 0:14:26]} 67... Kg3 {[%clk 0:13:09.9]} 68. Kg1
{[%clk 0:14:26.6]} 68... Bd8 {[%clk 0:13:12.9]} 69. Kh1 {[%clk 0:14:29.1]} 69...
Kg4 {[%clk 0:13:12.4]} 70. Kg1 {[%clk 0:14:29.3]} 70... Bc7 {[%clk 0:13:14.7]}
71. Kh1 {[%clk 0:14:31.6]} 71... h2 {[%clk 0:13:15.6]} 72. Kg2 {[%clk
0:14:33.2]} 72... Kf5 {[%clk 0:13:16.2]} 73. Kh1 {[%clk 0:14:36]} 73... Ke4
{[%clk 0:13:20.2]} 74. Kg2 {[%clk 0:14:39.2]} 74... Ke3 {[%clk 0:13:24.5]} 75.
Kh1 {[%clk 0:14:42.7]} 75... Bd6 {[%clk 0:13:25.6]} 76. Kg2 {[%clk 0:14:46.4]}
76... Ke2 {[%clk 0:13:29.8]} 77. Kh1 {[%clk 0:14:47.9]} 77... Bf4 {[%clk
0:13:25]} 78. Kg2 {[%clk 0:14:49.2]} 78... Bg3 {[%clk 0:13:28.6]} 79. Kh1 {[%clk
0:14:51.1]} 79... Ke1 {[%clk 0:13:26]} 80. Kg2 {[%clk 0:14:54]} 80... Bf4 {[%clk
0:13:22.7]} 81. Kh1 {[%clk 0:14:57.5]} 81... Kf2 {[%clk 0:13:25.5]} 1/2-1/2

[Event "Live Chess"]
[Site "Chess.com"]
[Date "2023.09.16"]
[Round "-"]
[White "AlphaKaua10"]
[Black "Mozart5501"]
[Result "0-1"]
[WhiteElo "1198"]
[BlackElo "1796"]
[TimeControl "900+5"]
[EndTime "6:35:30 PDT"]
[Termination "Mozart5501 venceu por desistência"]

1. d4 {[%clk 0:15:01.6]} 1... Nf6 {[%clk 0:15:03.4]} 2. c4 {[%clk 0:15:05.4]}
2... g6 {[%clk 0:15:08]} 3. Nf3 {[%clk 0:15:08.5]} 3... Bg7 {[%clk 0:15:10.4]}
4. g3 {[%clk 0:15:12.4]} 4... O-O {[%clk 0:15:13.4]} 5. Bg2 {[%clk 0:15:16.4]}
5... d5 {[%clk 0:15:16.8]} 6. cxd5 {[%clk 0:15:18.4]} 6... Nxd5 {[%clk
0:15:21.4]} 7. O-O {[%clk 0:15:20.8]} 7... Nc6 {[%clk 0:15:25.8]} 8. Ne5 {[%clk
0:15:19.8]} 8... Nxe5 {[%clk 0:15:28.7]} 9. dxe5 {[%clk 0:15:24.1]} 9... Nb4
{[%clk 0:15:23.1]} 10. Qxd8 {[%clk 0:15:26]} 10... Rxd8 {[%clk 0:15:25.3]} 11.
Nc3 {[%clk 0:15:29]} 11... Bxe5 {[%clk 0:15:23.6]} 12. f4 {[%clk 0:15:25.2]}
12... Bd4+ {[%clk 0:15:20.6]} 13. e3 {[%clk 0:15:27.5]} 13... Bxc3 {[%clk
0:15:17.5]} 14. bxc3 {[%clk 0:15:31]} 14... Nc2 {[%clk 0:15:14.2]} 15. Rb1
{[%clk 0:15:32.4]} 15... Rb8 {[%clk 0:14:59.5]} 16. Rf2 {[%clk 0:15:36]} 16...
Rd1+ {[%clk 0:14:56.6]} 17. Bf1 {[%clk 0:15:36.7]} 17... Nxe3 {[%clk 0:14:54.4]}
18. Rb4 {[%clk 0:15:24.5]} 18... Rxc1 {[%clk 0:14:48.3]} 19. Re4 {[%clk
0:15:25.3]} 19... Nxf1 {[%clk 0:14:42.7]} 20. Rxf1 {[%clk 0:15:29]} 20... Rxc3
{[%clk 0:14:46.7]} 21. Rxe7 {[%clk 0:15:32.3]} 21... Bh3 {[%clk 0:14:47.3]} 22.
Rd1 {[%clk 0:15:32.1]} 22... Kf8 {[%clk 0:14:44.7]} 23. Re2 {[%clk 0:15:30.1]}
23... Bg4 {[%clk 0:14:43.9]} 0-1

[Event "Live Chess"]
[Site "Chess.com"]
[Date "2023.09.16"]
[Round "-"]
[White "sleepGM86"]
[Black "VIAJEMCENTRODATERRA"]
[Result "0-1"]
[WhiteElo "1115"]
[BlackElo "2011"]
[TimeControl "900+5"]
[EndTime "6:35:41 PDT"]
[Termination "VIAJEMCENTRODATERRA venceu por desistência"]

1. c4 {[%clk 0:15:03.6]} 1... c5 {[%clk 0:15:02.6]} 2. Nc3 {[%clk 0:15:06.6]}
2... Nc6 {[%clk 0:15:06.7]} 3. g3 {[%clk 0:15:10.6]} 3... g6 {[%clk 0:15:11.2]}
4. Bg2 {[%clk 0:15:14.2]} 4... Bg7 {[%clk 0:15:15.1]} 5. Nf3 {[%clk 0:15:18.5]}
5... e5 {[%clk 0:15:18.4]} 6. O-O {[%clk 0:15:19.7]} 6... Nge7 {[%clk
0:15:22.3]} 7. Re1 {[%clk 0:15:23.6]} 7... d6 {[%clk 0:15:26.7]} 8. e3 {[%clk
0:15:27.9]} 8... O-O {[%clk 0:15:29.8]} 9. Rb1 {[%clk 0:15:24.3]} 9... a5 {[%clk
0:15:24.7]} 10. a3 {[%clk 0:14:53.3]} 10... Be6 {[%clk 0:15:19.5]} 11. b3 {[%clk
0:14:54.9]} 11... d5 {[%clk 0:14:47.5]} 12. cxd5 {[%clk 0:14:35.9]} 12... Nxd5
{[%clk 0:14:47.6]} 13. Nxd5 {[%clk 0:14:39.2]} 13... Bxd5 {[%clk 0:14:48]} 14.
Bb2 {[%clk 0:14:32.6]} 14... e4 {[%clk 0:14:05.5]} 15. Bxg7 {[%clk 0:14:18.4]}
15... Kxg7 {[%clk 0:14:07.3]} 16. Nh4 {[%clk 0:14:17.6]} 16... Ne5 {[%clk
0:13:56.5]} 17. d4 {[%clk 0:14:15.1]} 17... exd3 {[%clk 0:13:31.9]} 18. Bxd5
{[%clk 0:13:57.7]} 18... Qxd5 {[%clk 0:13:32.7]} 19. e4 {[%clk 0:13:50.8]} 19...
Qd7 {[%clk 0:12:39.5]} 20. Nf3 {[%clk 0:13:49.3]} 20... Nxf3+ {[%clk 0:12:11.7]}
21. Qxf3 {[%clk 0:13:52.7]} 21... Rfd8 {[%clk 0:11:48.8]} 22. e5 {[%clk
0:13:39.9]} 22... Qc6 {[%clk 0:10:49.3]} 23. Qxc6 {[%clk 0:13:22.1]} 23... bxc6
{[%clk 0:10:54.2]} 24. Re3 {[%clk 0:13:22.3]} 24... Rd5 {[%clk 0:10:52.4]} 25.
Rd1 {[%clk 0:13:23.4]} 25... Rad8 {[%clk 0:10:51.2]} 26. e6 {[%clk 0:13:22.6]}
26... fxe6 {[%clk 0:10:44.5]} 27. Rxe6 {[%clk 0:13:24.7]} 27... Kf7 {[%clk
0:10:47]} 28. Rxc6 {[%clk 0:13:27.8]} 28... d2 {[%clk 0:10:44.7]} 29. Rc7+
{[%clk 0:13:18.6]} 29... Kg8 {[%clk 0:10:43.4]} 30. Ra7 {[%clk 0:13:20.8]} 30...
Re5 {[%clk 0:10:44.5]} 31. Kg2 {[%clk 0:13:22.6]} 31... Re1 {[%clk 0:10:45.9]}
0-1

[Event "Live Chess"]
[Site "Chess.com"]
[Date "2023.09.16"]
[Round "-"]
[White "ArthurMPRJ"]
[Black "KauaShelby015"]
[Result "1/2-1/2"]
[WhiteElo "1249"]
[BlackElo "1250"]
[TimeControl "900+5"]
[EndTime "6:35:54 PDT"]
[Termination "Partida empatada por acordo"]

1. d4 {[%clk 0:15:03.2]} 1... d5 {[%clk 0:15:00]} 2. c4 {[%clk 0:15:06.5]} 2...
c6 {[%clk 0:15:03.6]} 3. e3 {[%clk 0:15:09.9]} 3... Nf6 {[%clk 0:15:06.4]} 4.
Nc3 {[%clk 0:15:09.7]} 4... Bf5 {[%clk 0:14:52]} 5. Bd3 {[%clk 0:15:04.2]} 5...
Bxd3 {[%clk 0:14:52.3]} 6. Qxd3 {[%clk 0:15:09.1]} 6... e6 {[%clk 0:14:55]} 7.
b3 {[%clk 0:15:11]} 7... Be7 {[%clk 0:14:46.1]} 8. Nf3 {[%clk 0:15:11.7]} 8...
O-O {[%clk 0:14:48.9]} 9. O-O {[%clk 0:15:15.3]} 9... Nbd7 {[%clk 0:14:50]} 10.
Bb2 {[%clk 0:15:18.8]} 10... c5 {[%clk 0:14:48.9]} 11. cxd5 {[%clk 0:15:21.1]}
11... exd5 {[%clk 0:14:52]} 12. Rac1 {[%clk 0:15:17.2]} 12... Rc8 {[%clk
0:14:50]} 13. dxc5 {[%clk 0:15:11.5]} 13... Nxc5 {[%clk 0:14:50.8]} 14. Qe2
{[%clk 0:15:09.3]} 14... Nce4 {[%clk 0:14:38.9]} 15. Rfd1 {[%clk 0:15:05]} 15...
Nxc3 {[%clk 0:14:32.7]} 16. Bxc3 {[%clk 0:15:09.9]} 16... Ne4 {[%clk 0:14:35.7]}
17. Bb2 {[%clk 0:15:07.1]} 17... Qd7 {[%clk 0:14:20.7]} 18. Ne5 {[%clk
0:15:00.3]} 18... Qe6 {[%clk 0:14:01.4]} 19. f3 {[%clk 0:14:49.3]} 19... Nf6
{[%clk 0:13:30]} 20. Qb5 {[%clk 0:14:11.2]} 20... b6 {[%clk 0:13:17.6]} 21. Rc6
{[%clk 0:13:44.1]} 21... Rxc6 {[%clk 0:12:59]} 22. Qxc6 {[%clk 0:13:46]} 22...
Bd6 {[%clk 0:12:52.2]} 23. f4 {[%clk 0:13:11.4]} 23... Bc5 {[%clk 0:12:32.2]}
24. Bd4 {[%clk 0:12:43.2]} 24... Bxd4 {[%clk 0:11:45.8]} 25. Rxd4 {[%clk
0:12:38.4]} 1/2-1/2

[Event "Live Chess"]
[Site "Chess.com"]
[Date "2023.09.16"]
[Round "-"]
[White "augustodemoraisrocha"]
[Black "Abofado"]
[Result "1-0"]
[WhiteElo "1466"]
[BlackElo "592"]
[TimeControl "900+5"]
[EndTime "6:37:07 PDT"]
[Termination "augustodemoraisrocha venceu por xeque-mate"]

1. e4 {[%clk 0:15:02.2]} 1... c6 {[%clk 0:15:04.2]} 2. Nf3 {[%clk 0:15:06.4]}
2... d5 {[%clk 0:15:08.3]} 3. exd5 {[%clk 0:15:11]} 3... cxd5 {[%clk 0:15:12.3]}
4. d4 {[%clk 0:15:13.9]} 4... e5 {[%clk 0:15:16.2]} 5. dxe5 {[%clk 0:15:16.5]}
5... f6 {[%clk 0:15:14.5]} 6. exf6 {[%clk 0:15:18.7]} 6... Nxf6 {[%clk
0:15:19.4]} 7. Nc3 {[%clk 0:15:21.9]} 7... d4 {[%clk 0:15:22.4]} 8. Qxd4 {[%clk
0:15:21.8]} 8... Nc6 {[%clk 0:15:23.3]} 9. Bb5 {[%clk 0:15:17.1]} 9... a6 {[%clk
0:15:22.1]} 10. Bxc6+ {[%clk 0:15:19.7]} 10... bxc6 {[%clk 0:15:24.2]} 11. Qxd8+
{[%clk 0:15:21.7]} 11... Kxd8 {[%clk 0:15:27.5]} 12. Bg5 {[%clk 0:15:26]} 12...
Be7 {[%clk 0:15:28.9]} 13. Ne5 {[%clk 0:15:28.4]} 13... h6 {[%clk 0:15:28.4]}
14. Nxc6+ {[%clk 0:15:22.8]} 14... Kd7 {[%clk 0:15:27.1]} 15. Nxe7 {[%clk
0:15:26.5]} 15... Kxe7 {[%clk 0:15:30.6]} 16. Bxf6+ {[%clk 0:15:30]} 16... Kxf6
{[%clk 0:15:34.5]} 17. O-O-O {[%clk 0:15:31.2]} 17... Bf5 {[%clk 0:15:36.6]} 18.
Rhe1 {[%clk 0:15:32.4]} 18... a5 {[%clk 0:15:33.5]} 19. Ne4+ {[%clk 0:15:33.8]}
19... Kg6 {[%clk 0:15:34.2]} 20. Ng3 {[%clk 0:15:31.5]} 20... Bg4 {[%clk
0:15:29.9]} 21. f3 {[%clk 0:15:33.7]} 21... Bc8 {[%clk 0:15:31.3]} 22. Re5
{[%clk 0:15:34.2]} 22... a4 {[%clk 0:15:33.4]} 23. Rd3 {[%clk 0:15:30.5]} 23...
Kf6 {[%clk 0:15:29.9]} 24. Re4 {[%clk 0:15:26]} 24... h5 {[%clk 0:15:27.6]} 25.
Ra3 {[%clk 0:15:24.9]} 25... Rb8 {[%clk 0:15:25.2]} 26. Rexa4 {[%clk 0:15:22.9]}
26... Kg5 {[%clk 0:15:27.5]} 27. Ne4+ {[%clk 0:15:13.9]} 27... Kf4 {[%clk
0:15:31]} 28. Nd6+ {[%clk 0:15:15.1]} 28... Kg5 {[%clk 0:15:29.1]} 29. Nf7+
{[%clk 0:15:17.2]} 29... Kf5 {[%clk 0:15:32.8]} 30. Nxh8 {[%clk 0:15:21]} 30...
Bb7 {[%clk 0:15:34.7]} 31. Nf7 {[%clk 0:15:22.7]} 31... Re8 {[%clk 0:15:38.5]}
32. Nd6+ {[%clk 0:15:25.1]} 32... Kg6 {[%clk 0:15:33.1]} 33. Nxe8 {[%clk
0:15:28.2]} 33... h4 {[%clk 0:15:29.6]} 34. Rxh4 {[%clk 0:15:27.3]} 34... Kf7
{[%clk 0:15:31.7]} 35. Nd6+ {[%clk 0:15:30]} 35... Ke6 {[%clk 0:15:35.7]} 36.
Nxb7 {[%clk 0:15:34.6]} 36... Kd7 {[%clk 0:15:40]} 37. Ra6 {[%clk 0:15:37.8]}
37... Kc7 {[%clk 0:15:44.2]} 38. Nc5 {[%clk 0:15:40.6]} 38... Kb8 {[%clk
0:15:48.1]} 39. Rh7 {[%clk 0:15:43.7]} 39... g5 {[%clk 0:15:48.6]} 40. Raa7
{[%clk 0:15:46.1]} 40... g4 {[%clk 0:15:48.8]} 41. Raf7 {[%clk 0:15:50.6]} 41...
gxf3 {[%clk 0:15:51.7]} 42. Rf8# {[%clk 0:15:55.5]} 1-0

[Event "Live Chess"]
[Site "Chess.com"]
[Date "2023.09.16"]
[Round "-"]
[White "Francisco_Ferrari"]
[Black "Edson_Zarnelli"]
[Result "1-0"]
[WhiteElo "2169"]
[BlackElo "756"]
[TimeControl "900+5"]
[EndTime "6:37:48 PDT"]
[Termination "Francisco_Ferrari venceu por desistência"]

1. e4 {[%clk 0:14:46.9]} 1... e5 {[%clk 0:15:03.1]} 2. Nf3 {[%clk 0:14:50.1]}
2... Nc6 {[%clk 0:15:06.2]} 3. d4 {[%clk 0:14:51.8]} 3... exd4 {[%clk
0:14:54.2]} 4. Bc4 {[%clk 0:14:53.8]} 4... Nf6 {[%clk 0:14:44.6]} 5. e5 {[%clk
0:14:49.2]} 5... Ne4 {[%clk 0:14:25.3]} 6. O-O {[%clk 0:14:45.4]} 6... d6 {[%clk
0:14:12.4]} 7. Bd5 {[%clk 0:14:38]} 7... Bg4 {[%clk 0:13:59.5]} 8. Bxe4 {[%clk
0:14:38.8]} 8... Bxf3 {[%clk 0:13:58.5]} 9. Bxf3 {[%clk 0:14:40.2]} 9... Nxe5
{[%clk 0:13:57.6]} 10. Re1 {[%clk 0:14:43.7]} 10... Be7 {[%clk 0:13:53.9]} 11.
Bxb7 {[%clk 0:14:44.1]} 11... Rb8 {[%clk 0:13:56]} 12. Be4 {[%clk 0:14:48.3]}
12... O-O {[%clk 0:13:58]} 13. Nd2 {[%clk 0:14:48.6]} 13... Bg5 {[%clk
0:13:53.4]} 14. Nf3 {[%clk 0:14:46.8]} 14... Bxc1 {[%clk 0:13:53.7]} 15. Qxc1
{[%clk 0:14:48.7]} 15... Nxf3+ {[%clk 0:13:56.1]} 16. Bxf3 {[%clk 0:14:50.6]}
16... Re8 {[%clk 0:13:53]} 17. b3 {[%clk 0:14:45.9]} 17... Rxe1+ {[%clk
0:13:48.8]} 18. Qxe1 {[%clk 0:14:49.2]} 18... Qc8 {[%clk 0:13:31]} 19. Qe4
{[%clk 0:14:52.6]} 19... Qe6 {[%clk 0:13:12.4]} 20. Qxd4 {[%clk 0:14:41.9]}
20... c5 {[%clk 0:13:09.2]} 21. Qd5 {[%clk 0:14:41.3]} 21... Re8 {[%clk
0:13:02.8]} 22. Qxe6 {[%clk 0:14:41.6]} 22... Rxe6 {[%clk 0:13:06.2]} 23. Kf1
{[%clk 0:14:44.5]} 23... Rh6 {[%clk 0:13:03.5]} 24. Re1 {[%clk 0:14:47.3]} 24...
g5 {[%clk 0:13:01.3]} 25. h3 {[%clk 0:14:49.1]} 25... f5 {[%clk 0:13:01.1]} 26.
Re7 {[%clk 0:14:50.5]} 26... a5 {[%clk 0:13:02.9]} 27. Bd5+ {[%clk 0:14:54.4]}
27... Kf8 {[%clk 0:12:59.7]} 28. Re6 {[%clk 0:14:55.2]} 28... Rxe6 {[%clk
0:12:58.2]} 29. Bxe6 {[%clk 0:15:00.1]} 29... f4 {[%clk 0:12:59]} 30. Ke2 {[%clk
0:15:03.3]} 30... Ke7 {[%clk 0:13:01.8]} 31. Bc4 {[%clk 0:15:02.4]} 31... Kf6
{[%clk 0:13:00.7]} 32. Kf3 {[%clk 0:15:06.4]} 32... Ke5 {[%clk 0:13:04.2]} 33.
Kg4 {[%clk 0:15:07.5]} 33... h6 {[%clk 0:13:08]} 34. h4 {[%clk 0:15:10.3]} 34...
d5 {[%clk 0:12:53.2]} 35. Bxd5 {[%clk 0:14:55]} 35... Kxd5 {[%clk 0:12:56.2]}
36. hxg5 {[%clk 0:14:59.3]} 36... hxg5 {[%clk 0:12:58.5]} 37. Kxg5 {[%clk
0:15:03.7]} 37... Ke4 {[%clk 0:13:02.4]} 38. Kg4 {[%clk 0:15:03.7]} 38... Ke5
{[%clk 0:13:01.1]} 39. g3 {[%clk 0:15:04.6]} 39... fxg3 {[%clk 0:12:42.6]} 40.
fxg3 {[%clk 0:15:08.8]} 40... Kd4 {[%clk 0:12:45.5]} 41. Kh5 {[%clk 0:15:04]}
41... Kc3 {[%clk 0:12:48.5]} 42. g4 {[%clk 0:15:08.6]} 42... Kxc2 {[%clk
0:12:52.7]} 43. g5 {[%clk 0:15:13.3]} 43... Kb2 {[%clk 0:12:56.2]} 44. g6 {[%clk
0:15:17.8]} 44... a4 {[%clk 0:12:59.5]} 45. g7 {[%clk 0:15:19.2]} 45... axb3
{[%clk 0:13:02]} 46. axb3 {[%clk 0:15:24.1]} 46... Kxb3 {[%clk 0:13:04.8]} 47.
g8=Q+ {[%clk 0:15:28.5]} 47... Kb4 {[%clk 0:13:04.6]} 48. Kg4 {[%clk 0:15:32.8]}
48... c4 {[%clk 0:13:08.4]} 49. Kf3 {[%clk 0:15:35.7]} 49... Kb3 {[%clk
0:13:07.5]} 50. Ke3 {[%clk 0:15:39.6]} 50... Kb4 {[%clk 0:13:08.7]} 51. Kd4
{[%clk 0:15:43.6]} 51... c3 {[%clk 0:13:11.6]} 52. Qc4+ {[%clk 0:15:48.2]} 52...
Ka3 {[%clk 0:13:13.2]} 53. Qxc3+ {[%clk 0:15:48.7]} 1-0

[Event "Live Chess"]
[Site "Chess.com"]
[Date "2023.09.16"]
[Round "-"]
[White "Froidastics"]
[Black "Gustavinh13"]
[Result "1-0"]
[WhiteElo "1974"]
[BlackElo "1931"]
[TimeControl "900+5"]
[EndTime "6:38:03 PDT"]
[Termination "Froidastics venceu por xeque-mate"]

1. e4 {[%clk 0:15:04]} 1... c6 {[%clk 0:15:03.8]} 2. d4 {[%clk 0:15:08]} 2... d5
{[%clk 0:15:08.2]} 3. e5 {[%clk 0:15:12.4]} 3... Bf5 {[%clk 0:15:12]} 4. Bd3
{[%clk 0:15:16.7]} 4... Bxd3 {[%clk 0:15:15.3]} 5. Qxd3 {[%clk 0:15:21.6]} 5...
e6 {[%clk 0:15:16.7]} 6. Nf3 {[%clk 0:15:25.8]} 6... c5 {[%clk 0:15:20.5]} 7. c3
{[%clk 0:15:20.8]} 7... Nc6 {[%clk 0:15:22.4]} 8. Nbd2 {[%clk 0:14:43.6]} 8...
Qc7 {[%clk 0:15:09.6]} 9. O-O {[%clk 0:14:43.5]} 9... Nge7 {[%clk 0:15:13]} 10.
Re1 {[%clk 0:14:33.2]} 10... Nf5 {[%clk 0:15:14]} 11. dxc5 {[%clk 0:14:23.1]}
11... Bxc5 {[%clk 0:15:15.6]} 12. b4 {[%clk 0:14:20.6]} 12... Bb6 {[%clk
0:14:22.3]} 13. a4 {[%clk 0:14:08.8]} 13... a5 {[%clk 0:14:19.3]} 14. b5 {[%clk
0:14:04.5]} 14... Nce7 {[%clk 0:14:16.1]} 15. Nb3 {[%clk 0:14:00.3]} 15... Rc8
{[%clk 0:14:09.3]} 16. Bb2 {[%clk 0:13:22.6]} 16... O-O {[%clk 0:14:03.8]} 17.
Rac1 {[%clk 0:12:45.9]} 17... Ng6 {[%clk 0:14:02]} 18. Nbd4 {[%clk 0:12:37.7]}
18... Nfe7 {[%clk 0:13:42.8]} 19. g3 {[%clk 0:11:06.7]} 19... Qc4 {[%clk
0:13:45.4]} 20. Qd1 {[%clk 0:09:57.2]} 20... Rfd8 {[%clk 0:13:04.4]} 21. h4
{[%clk 0:09:35.6]} 21... Nf8 {[%clk 0:11:23.2]} 22. Kg2 {[%clk 0:08:13.6]} 22...
Nd7 {[%clk 0:11:17]} 23. Ba3 {[%clk 0:06:44.9]} 23... Re8 {[%clk 0:11:07]} 24.
Bd6 {[%clk 0:06:16.8]} 24... Nc5 {[%clk 0:09:10.1]} 25. Bxc5 {[%clk 0:05:50.3]}
25... Qxc5 {[%clk 0:09:07.7]} 26. Qc2 {[%clk 0:04:48.6]} 26... Qc7 {[%clk
0:08:37.9]} 27. Qd2 {[%clk 0:03:43.7]} 27... h6 {[%clk 0:08:27.5]} 28. g4 {[%clk
0:03:08.7]} 28... Qc4 {[%clk 0:08:00.8]} 29. g5 {[%clk 0:02:43.7]} 29... h5
{[%clk 0:06:30.9]} 30. Qc2 {[%clk 0:02:18.7]} 30... g6 {[%clk 0:06:19]} 31. Re2
{[%clk 0:01:22.7]} 31... Kg7 {[%clk 0:05:21.4]} 32. Rd2 {[%clk 0:01:23.8]} 32...
Nf5 {[%clk 0:04:46.9]} 33. Nxf5+ {[%clk 0:01:18.6]} 33... gxf5 {[%clk
0:04:51.8]} 34. Nd4 {[%clk 0:01:18.5]} 34... Rc7 {[%clk 0:04:37.4]} 35. Qd1
{[%clk 0:01:21.8]} 35... Kg6 {[%clk 0:04:34.7]} 36. Rd3 {[%clk 0:01:13]} 36...
Rec8 {[%clk 0:04:27.3]} 37. Ne2 {[%clk 0:00:52.2]} 37... Qxh4 {[%clk 0:04:18.9]}
38. Qf1 {[%clk 0:00:47.6]} 38... Qe4+ {[%clk 0:04:00.4]} 39. Rf3 {[%clk
0:00:47.7]} 39... Qxe5 {[%clk 0:03:51.3]} 40. Nf4+ {[%clk 0:00:36.2]} 40... Kg7
{[%clk 0:03:37.2]} 41. Nxh5+ {[%clk 0:00:38]} 41... Kf8 {[%clk 0:03:41]} 42. Qh1
{[%clk 0:00:35.9]} 42... Ke7 {[%clk 0:03:28.2]} 43. Nf6 {[%clk 0:00:36.6]} 43...
Rxc3 {[%clk 0:01:26.5]} 44. Rfxc3 {[%clk 0:00:32.3]} 44... Rxc3 {[%clk
0:01:31.4]} 45. Rxc3 {[%clk 0:00:22]} 45... Qxc3 {[%clk 0:01:36.3]} 46. Qh8
{[%clk 0:00:26]} 46... Qc7 {[%clk 0:01:40.1]} 47. Qe8+ {[%clk 0:00:26.6]} 47...
Kd6 {[%clk 0:01:44]} 48. Qf8+ {[%clk 0:00:30.3]} 48... Ke5 {[%clk 0:01:43.9]}
49. Qa3 {[%clk 0:00:20.5]} 49... Qc5 {[%clk 0:01:44.8]} 50. f4+ {[%clk
0:00:21.3]} 50... Kxf4 {[%clk 0:01:43.8]} 51. Qg3# {[%clk 0:00:25.4]} 1-0